[Event "Late-Titled-Tuesday-Blitz-October-10-2023"]
[Site "Chess.com"]
[Date "2023.10.10"]
[Round "8"]
[White "rickywsb"]
[Black "talaicito"]
[Result "1-0"]
[WhiteElo "2357"]
[BlackElo "2226"]
[TimeControl "180+1"]
[EndTime "15:22:51 PDT"]
[Termination "rickywsb won on time"]

1. d4 {[%clk 0:03:00.9]} 1... e6 {[%clk 0:02:59.5]} 2. Bf4 {[%clk 0:03:00.6]}
2... f5 {[%clk 0:02:59.3]} 3. g3 {[%clk 0:02:57.6]} 3... Nf6 {[%clk 0:02:59.7]}
4. Bg2 {[%clk 0:02:58.1]} 4... g6 {[%clk 0:03:00.6]} 5. h4 {[%clk 0:02:56.1]}
5... Bg7 {[%clk 0:03:01.5]} 6. Nd2 {[%clk 0:02:54.3]} 6... Nh5 {[%clk 0:02:57]}
7. Bg5 {[%clk 0:02:53.8]} 7... Bf6 {[%clk 0:02:53.8]} 8. Ngf3 {[%clk 0:02:51.2]}
8... h6 {[%clk 0:02:44.1]} 9. Bxf6 {[%clk 0:02:45.8]} 9... Qxf6 {[%clk 0:02:45]}
10. e4 {[%clk 0:02:42.3]} 10... d6 {[%clk 0:02:29.4]} 11. O-O {[%clk 0:02:26.6]}
11... O-O {[%clk 0:02:23]} 12. c4 {[%clk 0:02:12.2]} 12... Nc6 {[%clk
0:02:19.9]} 13. exf5 {[%clk 0:01:33.1]} 13... exf5 {[%clk 0:02:13.5]} 14. Nb3
{[%clk 0:01:32.8]} 14... f4 {[%clk 0:01:59.1]} 15. Qe1 {[%clk 0:01:22.9]} 15...
Bg4 {[%clk 0:01:48.1]} 16. Nh2 {[%clk 0:01:10.8]} 16... Bd7 {[%clk 0:01:31.7]}
17. Qc3 {[%clk 0:01:02]} 17... Rae8 {[%clk 0:01:12.6]} 18. c5 {[%clk 0:00:53.2]}
18... g5 {[%clk 0:00:57.4]} 19. cxd6 {[%clk 0:00:44.7]} 19... cxd6 {[%clk
0:00:57]} 20. g4 {[%clk 0:00:37.8]} 20... f3 {[%clk 0:00:43.9]} 21. Bxf3 {[%clk
0:00:25.5]} 21... Nf4 {[%clk 0:00:42.7]} 22. Rae1 {[%clk 0:00:22.4]} 22... gxh4
{[%clk 0:00:36.1]} 23. a4 {[%clk 0:00:14.5]} 23... Nh3+ {[%clk 0:00:29.4]} 24.
Kh1 {[%clk 0:00:13.7]} 24... Ng5 {[%clk 0:00:29.4]} 25. Bd5+ {[%clk 0:00:12.7]}
25... Kg7 {[%clk 0:00:25.6]} 26. f4 {[%clk 0:00:13.1]} 26... Rxe1 {[%clk
0:00:17.6]} 27. Qxe1 {[%clk 0:00:11.3]} 27... Ne6 {[%clk 0:00:13.6]} 28. g5
{[%clk 0:00:10.9]} 28... Qf5 {[%clk 0:00:05.1]} 29. Be4 {[%clk 0:00:10.7]} 29...
Qh3 {[%clk 0:00:05]} 30. Rf3 {[%clk 0:00:09.4]} 1-0

[Event "Late-Titled-Tuesday-Blitz-October-10-2023"]
[Site "Chess.com"]
[Date "2023.10.10"]
[Round "8"]
[White "Harald_Schmidt"]
[Black "Joshukid"]
[Result "1-0"]
[WhiteElo "2384"]
[BlackElo "2560"]
[TimeControl "180+1"]
[EndTime "15:22:53 PDT"]
[Termination "Harald_Schmidt won by resignation"]

1. e4 {[%clk 0:02:59.6]} 1... Nf6 {[%clk 0:02:55.7]} 2. e5 {[%clk 0:02:58.3]}
2... Nd5 {[%clk 0:02:54.1]} 3. d3 {[%clk 0:02:58.8]} 3... d6 {[%clk 0:02:53.5]}
4. exd6 {[%clk 0:02:57.9]} 4... cxd6 {[%clk 0:02:51.6]} 5. g3 {[%clk 0:02:57.3]}
5... g6 {[%clk 0:02:49.1]} 6. Bg2 {[%clk 0:02:56.9]} 6... Nc7 {[%clk 0:02:47.9]}
7. Nf3 {[%clk 0:02:54.9]} 7... Bg7 {[%clk 0:02:47.5]} 8. O-O {[%clk 0:02:53.2]}
8... O-O {[%clk 0:02:47.7]} 9. c4 {[%clk 0:02:52.6]} 9... Nc6 {[%clk 0:02:46.4]}
10. Nc3 {[%clk 0:02:52.1]} 10... d5 {[%clk 0:02:45.6]} 11. a3 {[%clk 0:02:48.3]}
11... Bf5 {[%clk 0:02:39]} 12. Qe2 {[%clk 0:02:43.3]} 12... dxc4 {[%clk
0:02:38.1]} 13. dxc4 {[%clk 0:02:27.8]} 13... Bd3 {[%clk 0:02:36.4]} 14. Qe3
{[%clk 0:02:27.5]} 14... Bxf1 {[%clk 0:02:33.9]} 15. Kxf1 {[%clk 0:02:26.7]}
15... Qd7 {[%clk 0:02:14.3]} 16. b4 {[%clk 0:02:24.1]} 16... Rad8 {[%clk
0:01:57.3]} 17. Bb2 {[%clk 0:02:13.2]} 17... Qd3+ {[%clk 0:01:54.8]} 18. Qxd3
{[%clk 0:02:12.6]} 18... Rxd3 {[%clk 0:01:55.7]} 19. Rc1 {[%clk 0:02:11.9]}
19... Rfd8 {[%clk 0:01:40.3]} 20. Ke2 {[%clk 0:02:09.3]} 20... R3d7 {[%clk
0:01:31]} 21. Rc2 {[%clk 0:02:06]} 21... Ne6 {[%clk 0:01:21.4]} 22. Nd5 {[%clk
0:02:04.8]} 22... Bxb2 {[%clk 0:01:17.2]} 23. Rxb2 {[%clk 0:02:04.3]} 23...
Ned4+ {[%clk 0:01:15]} 24. Nxd4 {[%clk 0:02:03.3]} 24... Nxd4+ {[%clk
0:01:15.9]} 25. Ke3 {[%clk 0:02:03.3]} 25... Nf5+ {[%clk 0:01:14.8]} 26. Ke2
{[%clk 0:02:02.8]} 26... Kg7 {[%clk 0:01:14.7]} 27. Be4 {[%clk 0:01:45.9]} 27...
e6 {[%clk 0:01:12.9]} 28. Bxf5 {[%clk 0:01:45.1]} 28... gxf5 {[%clk 0:01:12.3]}
29. Nc3 {[%clk 0:01:39.3]} 29... Rd4 {[%clk 0:01:11.2]} 30. c5 {[%clk
0:01:37.8]} 30... Rc4 {[%clk 0:01:11.1]} 31. Nb5 {[%clk 0:01:34.6]} 31... a5
{[%clk 0:01:01.9]} 32. Nd6 {[%clk 0:01:30.5]} 32... Rd4 {[%clk 0:00:23.5]} 33.
Nxb7 {[%clk 0:01:29.1]} 33... Re4+ {[%clk 0:00:22]} 34. Kf1 {[%clk 0:01:17.8]}
34... Rd1+ {[%clk 0:00:22.4]} 35. Kg2 {[%clk 0:01:17.7]} 35... axb4 {[%clk
0:00:23.3]} 36. axb4 {[%clk 0:01:17.1]} 36... Rdd4 {[%clk 0:00:10.7]} 37. c6
{[%clk 0:01:07.3]} 37... Rxb4 {[%clk 0:00:09.9]} 38. Rxb4 {[%clk 0:01:06.1]}
38... Rxb4 {[%clk 0:00:10.1]} 39. Nd6 {[%clk 0:01:06.5]} 39... Rb6 {[%clk
0:00:09]} 40. c7 {[%clk 0:01:05.2]} 40... Rxd6 {[%clk 0:00:09.7]} 41. c8=Q
{[%clk 0:01:04.4]} 41... Rd5 {[%clk 0:00:10.5]} 42. Qc7 {[%clk 0:01:02.8]} 42...
Kg8 {[%clk 0:00:09.8]} 43. Qf4 {[%clk 0:01:01.2]} 43... Kg7 {[%clk 0:00:09.9]}
44. Qg5+ {[%clk 0:01:00.8]} 44... Kf8 {[%clk 0:00:10.4]} 45. Qf6 {[%clk
0:01:00.8]} 45... Kg8 {[%clk 0:00:10.9]} 46. h4 {[%clk 0:01:00.5]} 46... f4
{[%clk 0:00:06.4]} 47. g4 {[%clk 0:00:58.3]} 47... Rc5 {[%clk 0:00:01.7]} 48. h5
{[%clk 0:00:57.8]} 48... h6 {[%clk 0:00:01.6]} 49. Qxh6 {[%clk 0:00:56.2]} 49...
Rd5 {[%clk 0:00:02.1]} 1-0

[Event "Late-Titled-Tuesday-Blitz-October-10-2023"]
[Site "Chess.com"]
[Date "2023.10.10"]
[Round "8"]
[White "Arteler"]
[Black "maximnovik"]
[Result "0-1"]
[WhiteElo "2583"]
[BlackElo "2481"]
[TimeControl "180+1"]
[EndTime "15:22:56 PDT"]
[Termination "maximnovik won by resignation"]

1. e4 {[%clk 0:02:54.1]} 1... c6 {[%clk 0:02:15.3]} 2. d4 {[%clk 0:02:49.9]}
2... d5 {[%clk 0:02:16.2]} 3. exd5 {[%clk 0:02:50.8]} 3... cxd5 {[%clk
0:02:16.3]} 4. c4 {[%clk 0:02:51.7]} 4... Nf6 {[%clk 0:02:16.4]} 5. Nc3 {[%clk
0:02:52.3]} 5... g6 {[%clk 0:02:16.7]} 6. Qb3 {[%clk 0:02:51.5]} 6... Bg7 {[%clk
0:02:16.5]} 7. cxd5 {[%clk 0:02:52.1]} 7... O-O {[%clk 0:02:16.7]} 8. Be2 {[%clk
0:02:52.6]} 8... Na6 {[%clk 0:02:16.7]} 9. Bf3 {[%clk 0:02:53.1]} 9... Qb6
{[%clk 0:02:16.3]} 10. Nge2 {[%clk 0:02:52.6]} 10... Qxb3 {[%clk 0:02:15.2]} 11.
axb3 {[%clk 0:02:52.7]} 11... Nb4 {[%clk 0:02:16.1]} 12. O-O {[%clk 0:02:50.1]}
12... Rd8 {[%clk 0:02:16.6]} 13. d6 {[%clk 0:02:40.7]} 13... Rxd6 {[%clk
0:02:15.7]} 14. Bf4 {[%clk 0:02:41]} 14... Rd7 {[%clk 0:02:15.6]} 15. Be5 {[%clk
0:02:39.2]} 15... Nfd5 {[%clk 0:02:12.4]} 16. Bxg7 {[%clk 0:02:38.5]} 16... Kxg7
{[%clk 0:02:12.4]} 17. Ra5 {[%clk 0:02:26.8]} 17... Nf6 {[%clk 0:01:53.6]} 18.
Rfa1 {[%clk 0:02:22.7]} 18... a6 {[%clk 0:01:44.6]} 19. Na4 {[%clk 0:02:22.7]}
19... Rd8 {[%clk 0:01:41.8]} 20. Nb6 {[%clk 0:02:12.8]} 20... Rb8 {[%clk
0:01:41.7]} 21. Rc5 {[%clk 0:02:02]} 21... Bf5 {[%clk 0:01:25.9]} 22. Rc7 {[%clk
0:01:51]} 22... Kf8 {[%clk 0:01:15.5]} 23. Rac1 {[%clk 0:01:21.8]} 23... Nfd5
{[%clk 0:00:48.4]} 24. Nxd5 {[%clk 0:01:21.3]} 24... Nxd5 {[%clk 0:00:48.6]} 25.
R7c5 {[%clk 0:01:16.9]} 25... Nf6 {[%clk 0:00:48.3]} 26. Ng3 {[%clk 0:01:12.2]}
26... Be6 {[%clk 0:00:46.9]} 27. b4 {[%clk 0:01:05.7]} 27... Rxd4 {[%clk
0:00:46.5]} 28. b5 {[%clk 0:01:06.4]} 28... Rbd8 {[%clk 0:00:42.3]} 29. h3
{[%clk 0:01:01.8]} 29... Rb4 {[%clk 0:00:40.2]} 30. Bxb7 {[%clk 0:01:00.3]}
30... axb5 {[%clk 0:00:39.8]} 31. Bc6 {[%clk 0:00:57.7]} 31... Bc4 {[%clk
0:00:37]} 32. Rc2 {[%clk 0:00:51.2]} 32... Rd1+ {[%clk 0:00:33.8]} 33. Kh2
{[%clk 0:00:51.2]} 33... Rb1 {[%clk 0:00:33.2]} 34. Rd2 {[%clk 0:00:37.2]} 34...
R1xb2 {[%clk 0:00:32.6]} 35. Rd8+ {[%clk 0:00:37.8]} 35... Kg7 {[%clk
0:00:32.6]} 36. Rg5 {[%clk 0:00:26.1]} 36... Rxf2 {[%clk 0:00:23.3]} 37. Bf3
{[%clk 0:00:23.7]} 37... Be6 {[%clk 0:00:22]} 38. Rc5 {[%clk 0:00:20.4]} 38...
Rbb2 {[%clk 0:00:21.5]} 39. Kg1 {[%clk 0:00:21]} 39... Rfc2 {[%clk 0:00:20]} 40.
Rc7 {[%clk 0:00:21.6]} 40... Rxc7 {[%clk 0:00:19.3]} 0-1

[Event "Late-Titled-Tuesday-Blitz-October-10-2023"]
[Site "Chess.com"]
[Date "2023.10.10"]
[Round "8"]
[White "Binary010"]
[Black "rasmussvane"]
[Result "0-1"]
[WhiteElo "2831"]
[BlackElo "3002"]
[TimeControl "180+1"]
[EndTime "15:22:59 PDT"]
[Termination "rasmussvane won by resignation"]

1. e4 {[%clk 0:03:00.9]} 1... c6 {[%clk 0:02:57.6]} 2. d4 {[%clk 0:03:00.8]}
2... d5 {[%clk 0:02:58.5]} 3. e5 {[%clk 0:03:01.2]} 3... Bf5 {[%clk 0:02:56.9]}
4. Nf3 {[%clk 0:03:01.5]} 4... e6 {[%clk 0:02:54]} 5. Be2 {[%clk 0:03:01.7]}
5... Ne7 {[%clk 0:02:53.1]} 6. c3 {[%clk 0:03:01.5]} 6... Nd7 {[%clk 0:02:52.5]}
7. O-O {[%clk 0:03:01.1]} 7... Ng6 {[%clk 0:02:51.7]} 8. Ne1 {[%clk 0:02:43.9]}
8... h5 {[%clk 0:02:49.2]} 9. Bd3 {[%clk 0:02:39.5]} 9... Bxd3 {[%clk
0:02:34.1]} 10. Nxd3 {[%clk 0:02:40.4]} 10... c5 {[%clk 0:02:30.2]} 11. f4
{[%clk 0:02:31.3]} 11... cxd4 {[%clk 0:02:25.7]} 12. cxd4 {[%clk 0:02:30]} 12...
Ne7 {[%clk 0:02:23.9]} 13. Be3 {[%clk 0:02:14.3]} 13... Nf5 {[%clk 0:02:20.9]}
14. Bf2 {[%clk 0:02:14.4]} 14... Rc8 {[%clk 0:02:17]} 15. Nc3 {[%clk 0:02:14.3]}
15... Be7 {[%clk 0:02:12.4]} 16. Rc1 {[%clk 0:02:13.1]} 16... Nb8 {[%clk
0:02:08.1]} 17. Qa4+ {[%clk 0:01:44.1]} 17... Nc6 {[%clk 0:02:06.5]} 18. Nb5
{[%clk 0:01:44.5]} 18... Qb6 {[%clk 0:01:51.8]} 19. Qb3 {[%clk 0:01:11.2]} 19...
O-O {[%clk 0:01:44.2]} 20. Nc5 {[%clk 0:00:57]} 20... Ncxd4 {[%clk 0:01:27.6]}
21. Nxd4 {[%clk 0:00:53.3]} 21... Nxd4 {[%clk 0:01:25.4]} 22. Bxd4 {[%clk
0:00:48.4]} 22... Bxc5 {[%clk 0:01:05.1]} 23. Rxc5 {[%clk 0:00:42.9]} 23... Rxc5
{[%clk 0:01:05.2]} 24. Qe3 {[%clk 0:00:39.7]} 24... Rfc8 {[%clk 0:01:04.6]} 25.
f5 {[%clk 0:00:34.7]} 25... exf5 {[%clk 0:01:01.4]} 26. e6 {[%clk 0:00:23.7]}
26... fxe6 {[%clk 0:00:57.4]} 27. Qe5 {[%clk 0:00:19.3]} 27... R8c7 {[%clk
0:00:33.4]} 28. h4 {[%clk 0:00:19.1]} 28... Qc6 {[%clk 0:00:31.4]} 29. Rf3
{[%clk 0:00:18.9]} 29... Rc1+ {[%clk 0:00:30.8]} 30. Kh2 {[%clk 0:00:19.2]}
30... Rf7 {[%clk 0:00:16.3]} 31. Rg3 {[%clk 0:00:17.8]} 31... Qd7 {[%clk
0:00:16.7]} 32. Rg6 {[%clk 0:00:16.4]} 32... Qc7 {[%clk 0:00:15.3]} 33. Rxe6
{[%clk 0:00:13.4]} 33... Qxe5+ {[%clk 0:00:15.6]} 34. Rxe5 {[%clk 0:00:14.3]}
34... a6 {[%clk 0:00:11.5]} 35. Rxd5 {[%clk 0:00:13]} 35... Rd1 {[%clk
0:00:11.8]} 36. a4 {[%clk 0:00:11.1]} 36... Rd3 {[%clk 0:00:11.6]} 37. a5 {[%clk
0:00:10.7]} 37... Kh7 {[%clk 0:00:11.8]} 38. b4 {[%clk 0:00:10.5]} 38... Re7
{[%clk 0:00:10.9]} 0-1

[Event "Late-Titled-Tuesday-Blitz-October-10-2023"]
[Site "Chess.com"]
[Date "2023.10.10"]
[Round "8"]
[White "Harsha_Bharathakoti"]
[Black "GothamChess"]
[Result "1-0"]
[WhiteElo "2909"]
[BlackElo "2746"]
[TimeControl "180+1"]
[EndTime "15:22:59 PDT"]
[Termination "Harsha_Bharathakoti won by resignation"]

1. Nf3 {[%clk 0:03:00.9]} 1... g6 {[%clk 0:02:59]} 2. e4 {[%clk 0:02:59.3]} 2...
Bg7 {[%clk 0:02:59.3]} 3. d4 {[%clk 0:02:58.6]} 3... d6 {[%clk 0:02:59.8]} 4.
Bc4 {[%clk 0:02:58.8]} 4... Nc6 {[%clk 0:02:59.6]} 5. h3 {[%clk 0:02:58.3]} 5...
Nf6 {[%clk 0:02:59.5]} 6. Qe2 {[%clk 0:02:47]} 6... O-O {[%clk 0:02:57.5]} 7.
O-O {[%clk 0:02:37.5]} 7... Nd7 {[%clk 0:02:52.9]} 8. Rd1 {[%clk 0:02:29.9]}
8... e6 {[%clk 0:02:47.8]} 9. c3 {[%clk 0:02:26.8]} 9... a6 {[%clk 0:02:45.5]}
10. a4 {[%clk 0:02:21.6]} 10... e5 {[%clk 0:02:30]} 11. Bg5 {[%clk 0:02:12.6]}
11... Qe8 {[%clk 0:02:22.4]} 12. a5 {[%clk 0:02:04.2]} 12... h6 {[%clk 0:02:19]}
13. Bh4 {[%clk 0:01:48.2]} 13... Kh7 {[%clk 0:02:17.7]} 14. Nbd2 {[%clk
0:01:08.9]} 14... exd4 {[%clk 0:02:09.2]} 15. cxd4 {[%clk 0:01:08.8]} 15... Nxd4
{[%clk 0:02:06]} 16. Nxd4 {[%clk 0:01:08.7]} 16... Bxd4 {[%clk 0:02:06.5]} 17.
Nf3 {[%clk 0:01:08.4]} 17... Bg7 {[%clk 0:02:02.4]} 18. Rac1 {[%clk 0:01:08.6]}
18... Nc5 {[%clk 0:01:56.1]} 19. e5 {[%clk 0:00:40.3]} 19... Be6 {[%clk
0:00:55.2]} 20. b4 {[%clk 0:00:39.3]} 20... Nb3 {[%clk 0:00:42.7]} 21. Rc3
{[%clk 0:00:27.8]} 21... Qa4 {[%clk 0:00:36.4]} 22. Rxb3 {[%clk 0:00:26.5]}
22... d5 {[%clk 0:00:36]} 23. Rxd5 {[%clk 0:00:22.7]} 23... c6 {[%clk
0:00:34.6]} 24. Rd6 {[%clk 0:00:19.7]} 24... Bf5 {[%clk 0:00:14.4]} 25. g4
{[%clk 0:00:16.5]} 25... Be6 {[%clk 0:00:10.9]} 26. Rb1 {[%clk 0:00:12.1]} 26...
Rae8 {[%clk 0:00:06]} 27. Bg3 {[%clk 0:00:10.2]} 27... c5 {[%clk 0:00:04]} 28.
Bxe6 {[%clk 0:00:09.7]} 28... fxe6 {[%clk 0:00:04.4]} 29. bxc5 {[%clk
0:00:09.4]} 29... Qxa5 {[%clk 0:00:03.3]} 30. Rxb7 {[%clk 0:00:09.3]} 30... Kh8
{[%clk 0:00:02.7]} 31. Rdd7 {[%clk 0:00:09.2]} 31... Rg8 {[%clk 0:00:02.9]} 32.
Nh4 {[%clk 0:00:09.2]} 32... Qa1+ {[%clk 0:00:02.3]} 33. Kg2 {[%clk 0:00:09.2]}
33... Qa2 {[%clk 0:00:02.4]} 34. Nxg6+ {[%clk 0:00:08.9]} 34... Kh7 {[%clk
0:00:02.4]} 35. Qxa2 {[%clk 0:00:09.6]} 1-0

[Event "Late-Titled-Tuesday-Blitz-October-10-2023"]
[Site "Chess.com"]
[Date "2023.10.10"]
[Round "8"]
[White "Inepton_Fermion"]
[Black "FERNANDEZL1983"]
[Result "0-1"]
[WhiteElo "2393"]
[BlackElo "2527"]
[TimeControl "180+1"]
[EndTime "15:22:59 PDT"]
[Termination "FERNANDEZL1983 won by resignation"]

1. Nf3 {[%clk 0:02:57.6]} 1... Nf6 {[%clk 0:02:59.7]} 2. b3 {[%clk 0:02:57.6]}
2... g6 {[%clk 0:03:00.6]} 3. Bb2 {[%clk 0:02:58]} 3... Bg7 {[%clk 0:03:00.3]}
4. g3 {[%clk 0:02:58.4]} 4... O-O {[%clk 0:03:00.3]} 5. Bg2 {[%clk 0:02:58.6]}
5... c5 {[%clk 0:03:00.7]} 6. c4 {[%clk 0:02:58.8]} 6... Nc6 {[%clk 0:02:58.9]}
7. O-O {[%clk 0:02:58.3]} 7... d5 {[%clk 0:02:58.7]} 8. cxd5 {[%clk 0:02:58.3]}
8... Nxd5 {[%clk 0:02:58.3]} 9. Bxg7 {[%clk 0:02:58.8]} 9... Kxg7 {[%clk
0:02:59]} 10. d4 {[%clk 0:02:59.5]} 10... Qa5 {[%clk 0:02:27.1]} 11. e4 {[%clk
0:02:33.3]} 11... Nf6 {[%clk 0:02:17.9]} 12. d5 {[%clk 0:02:26.9]} 12... Rd8
{[%clk 0:02:10]} 13. Qe2 {[%clk 0:02:06.6]} 13... Nd4 {[%clk 0:01:57.9]} 14.
Nxd4 {[%clk 0:02:06.8]} 14... cxd4 {[%clk 0:01:58.5]} 15. Nd2 {[%clk 0:01:58.7]}
15... b6 {[%clk 0:01:30.9]} 16. Nc4 {[%clk 0:01:28]} 16... Ba6 {[%clk
0:01:29.9]} 17. d6 {[%clk 0:00:54.2]} 17... Bxc4 {[%clk 0:00:54.6]} 18. Qxc4
{[%clk 0:00:50.3]} 18... Rac8 {[%clk 0:00:54.4]} 19. dxe7 {[%clk 0:00:50]} 19...
Re8 {[%clk 0:00:44.2]} 20. Qxd4 {[%clk 0:00:43.9]} 20... Rxe7 {[%clk 0:00:43.4]}
21. Rfe1 {[%clk 0:00:40.5]} 21... Qe5 {[%clk 0:00:41.8]} 22. Qxe5 {[%clk
0:00:38.9]} 22... Rxe5 {[%clk 0:00:41.4]} 23. f4 {[%clk 0:00:39.7]} 23... Ra5
{[%clk 0:00:34.3]} 24. Re2 {[%clk 0:00:28.6]} 24... Rc3 {[%clk 0:00:28.4]} 25.
Rd1 {[%clk 0:00:24.8]} 25... Rac5 {[%clk 0:00:15.6]} 26. h3 {[%clk 0:00:14.6]}
26... Rxg3 {[%clk 0:00:13.3]} 27. Kf2 {[%clk 0:00:08.7]} 27... Nh5 {[%clk
0:00:11.6]} 28. e5 {[%clk 0:00:03.3]} 28... Rxg2+ {[%clk 0:00:11]} 29. Kxg2
{[%clk 0:00:03.2]} 29... Nxf4+ {[%clk 0:00:11.9]} 30. Kf3 {[%clk 0:00:01.8]}
30... Nxe2 {[%clk 0:00:12.8]} 31. Kxe2 {[%clk 0:00:02.6]} 31... Rxe5+ {[%clk
0:00:13]} 32. Kf3 {[%clk 0:00:03.3]} 32... Rh5 {[%clk 0:00:13.3]} 33. Kg3 {[%clk
0:00:02.7]} 33... Ra5 {[%clk 0:00:12.7]} 34. Rd7 {[%clk 0:00:03.6]} 34... Rxa2
{[%clk 0:00:12.2]} 0-1

[Event "Late-Titled-Tuesday-Blitz-October-10-2023"]
[Site "Chess.com"]
[Date "2023.10.10"]
[Round "8"]
[White "Korchmar_Vasiliy"]
[Black "FontVella8"]
[Result "1-0"]
[WhiteElo "2762"]
[BlackElo "2627"]
[TimeControl "180+1"]
[EndTime "15:23:00 PDT"]
[Termination "Korchmar_Vasiliy won on time"]

1. e4 {[%clk 0:03:00.9]} 1... c6 {[%clk 0:02:59.9]} 2. d4 {[%clk 0:03:01.2]}
2... d5 {[%clk 0:03:00.8]} 3. exd5 {[%clk 0:03:01.9]} 3... cxd5 {[%clk 0:03:01]}
4. Bd3 {[%clk 0:03:02.8]} 4... Nf6 {[%clk 0:03:01.2]} 5. c3 {[%clk 0:03:02.7]}
5... Nc6 {[%clk 0:03:01.7]} 6. Bf4 {[%clk 0:03:03.3]} 6... Bg4 {[%clk
0:03:01.5]} 7. Qb3 {[%clk 0:03:03.5]} 7... Qd7 {[%clk 0:03:00.7]} 8. h3 {[%clk
0:02:58]} 8... Bh5 {[%clk 0:02:57.7]} 9. Nd2 {[%clk 0:02:58.3]} 9... e6 {[%clk
0:02:57.5]} 10. Ngf3 {[%clk 0:02:58.8]} 10... Bd6 {[%clk 0:02:55.5]} 11. Bxd6
{[%clk 0:02:59.1]} 11... Qxd6 {[%clk 0:02:55.8]} 12. O-O {[%clk 0:02:59.8]}
12... Bxf3 {[%clk 0:02:54.2]} 13. Nxf3 {[%clk 0:02:59.6]} 13... O-O {[%clk
0:02:54.9]} 14. Rfe1 {[%clk 0:02:57.1]} 14... Qc7 {[%clk 0:02:54.9]} 15. a3
{[%clk 0:02:48.1]} 15... g6 {[%clk 0:02:53.6]} 16. g3 {[%clk 0:02:46.8]} 16...
a6 {[%clk 0:02:53.1]} 17. Kg2 {[%clk 0:02:43.7]} 17... b5 {[%clk 0:02:49]} 18.
a4 {[%clk 0:02:40.4]} 18... bxa4 {[%clk 0:01:57.9]} 19. Rxa4 {[%clk 0:02:39.2]}
19... Rab8 {[%clk 0:01:54.1]} 20. Qa3 {[%clk 0:02:38.9]} 20... a5 {[%clk
0:01:52.6]} 21. Ne5 {[%clk 0:02:34.2]} 21... Nxe5 {[%clk 0:01:45.1]} 22. Rxe5
{[%clk 0:02:32.2]} 22... Qb6 {[%clk 0:01:42.9]} 23. Re2 {[%clk 0:02:26.3]} 23...
Ra8 {[%clk 0:01:42.7]} 24. Qa1 {[%clk 0:02:09]} 24... Qd8 {[%clk 0:00:58.5]} 25.
b3 {[%clk 0:01:59]} 25... h5 {[%clk 0:00:55.6]} 26. Rea2 {[%clk 0:01:41.3]}
26... Rb8 {[%clk 0:00:45.1]} 27. R2a3 {[%clk 0:01:32.8]} 27... h4 {[%clk
0:00:39.3]} 28. g4 {[%clk 0:01:33]} 28... Qd6 {[%clk 0:00:18.3]} 29. Rxa5 {[%clk
0:01:26.3]} 29... Qf4 {[%clk 0:00:18.2]} 30. Qd1 {[%clk 0:01:26.5]} 30... Rfc8
{[%clk 0:00:16.3]} 31. b4 {[%clk 0:01:24.1]} 31... Ne4 {[%clk 0:00:13.1]} 32.
Bxe4 {[%clk 0:01:20.5]} 32... dxe4 {[%clk 0:00:09.3]} 33. Qe2 {[%clk 0:01:21]}
33... Qc1 {[%clk 0:00:07.5]} 34. Qe3 {[%clk 0:00:39.6]} 34... Qc2 {[%clk
0:00:07.2]} 35. Ra7 {[%clk 0:00:40.2]} 35... Rb5 {[%clk 0:00:02.3]} 36. Qf4
{[%clk 0:00:39.4]} 36... Rf8 {[%clk 0:00:02.6]} 37. Ra8 {[%clk 0:00:39.2]} 37...
g5 {[%clk 0:00:01.6]} 38. Qf6 {[%clk 0:00:32.7]} 38... Rfb8 {[%clk 0:00:01.1]}
39. Rxb8+ {[%clk 0:00:31.7]} 39... Rxb8 {[%clk 0:00:02]} 40. Qxg5+ {[%clk
0:00:32.2]} 40... Kf8 {[%clk 0:00:02.6]} 41. Ra7 {[%clk 0:00:30.2]} 41... Re8
{[%clk 0:00:01.4]} 42. Qf6 {[%clk 0:00:30.3]} 1-0

[Event "Late-Titled-Tuesday-Blitz-October-10-2023"]
[Site "Chess.com"]
[Date "2023.10.10"]
[Round "8"]
[White "Necromon"]
[Black "hansen"]
[Result "0-1"]
[WhiteElo "2477"]
[BlackElo "2900"]
[TimeControl "180+1"]
[EndTime "15:23:00 PDT"]
[Termination "hansen won by checkmate"]

1. Nf3 {[%clk 0:03:00.9]} 1... d5 {[%clk 0:03:00]} 2. c4 {[%clk 0:02:59.9]} 2...
e6 {[%clk 0:03:00.3]} 3. d4 {[%clk 0:02:59.4]} 3... Be7 {[%clk 0:03:00.3]} 4. g3
{[%clk 0:02:59.3]} 4... Nf6 {[%clk 0:03:00.2]} 5. Bg2 {[%clk 0:02:59.7]} 5...
O-O {[%clk 0:03:00.9]} 6. O-O {[%clk 0:02:59.8]} 6... Nbd7 {[%clk 0:03:01.6]} 7.
Qc2 {[%clk 0:02:58.2]} 7... c6 {[%clk 0:03:01.1]} 8. Nc3 {[%clk 0:02:56.5]} 8...
b6 {[%clk 0:02:59]} 9. cxd5 {[%clk 0:02:47.8]} 9... cxd5 {[%clk 0:02:59.3]} 10.
Bf4 {[%clk 0:02:46.5]} 10... Bb7 {[%clk 0:02:53.9]} 11. Rac1 {[%clk 0:02:45.1]}
11... Rc8 {[%clk 0:02:53.1]} 12. Qa4 {[%clk 0:02:40.3]} 12... a6 {[%clk
0:02:52.4]} 13. b4 {[%clk 0:02:31.7]} 13... b5 {[%clk 0:02:44.8]} 14. Qb3 {[%clk
0:02:31.1]} 14... Nb6 {[%clk 0:02:31.1]} 15. Ne5 {[%clk 0:02:07]} 15... Ne4
{[%clk 0:01:55.8]} 16. Nd3 {[%clk 0:01:41.3]} 16... Nc4 {[%clk 0:01:47.6]} 17.
Rfd1 {[%clk 0:01:33.6]} 17... g5 {[%clk 0:01:44.3]} 18. Be3 {[%clk 0:01:20.3]}
18... f5 {[%clk 0:01:44.1]} 19. Nxe4 {[%clk 0:01:14.5]} 19... dxe4 {[%clk
0:01:40.7]} 20. Nc5 {[%clk 0:01:14.2]} 20... Bd5 {[%clk 0:01:41.2]} 21. Qc3
{[%clk 0:01:12.6]} 21... f4 {[%clk 0:01:10]} 22. Bd2 {[%clk 0:01:03.2]} 22... e3
{[%clk 0:00:41.6]} 23. fxe3 {[%clk 0:00:57.5]} 23... Bxg2 {[%clk 0:00:40.3]} 24.
Kxg2 {[%clk 0:00:57.1]} 24... fxg3 {[%clk 0:00:36.1]} 25. hxg3 {[%clk
0:00:56.5]} 25... Bxc5 {[%clk 0:00:14.5]} 26. dxc5 {[%clk 0:00:43.1]} 26... Qd5+
{[%clk 0:00:13.9]} 27. Kg1 {[%clk 0:00:42.9]} 27... Qf5 {[%clk 0:00:14]} 28. Rf1
{[%clk 0:00:40.3]} 28... Qg4 {[%clk 0:00:10.4]} 29. e4 {[%clk 0:00:23.1]} 29...
Nxd2 {[%clk 0:00:02.5]} 30. Rxf8+ {[%clk 0:00:20.9]} 30... Rxf8 {[%clk
0:00:02.3]} 31. Qd3 {[%clk 0:00:18]} 31... Nxe4 {[%clk 0:00:02.6]} 32. c6 {[%clk
0:00:17.6]} 32... Nxg3 {[%clk 0:00:03]} 33. c7 {[%clk 0:00:12.8]} 33... Nxe2+
{[%clk 0:00:03.3]} 34. Kh1 {[%clk 0:00:13.1]} 34... Qh4+ {[%clk 0:00:03.5]} 35.
Kg2 {[%clk 0:00:12.8]} 35... Rf2# {[%clk 0:00:03.4]} 0-1